lending/lending_fUSD_20240703
["ID","MTS","AMOUNT","RATE_DAILY","PERIOD"]
[331047283,1720044223755,-8697.74182121,0.0004,30]
[331047284,1720044223785,-1357.71330667,0.0004,120]
[331047285,1720044223810,-7661.89582109,0.0004,30]
[331047286,1720044223834,-36499.32257693,0.0004,30]
[331047287,1720044223870,-4000.0,0.0004,30]
[331047288,1720044223895,-2020.96,0.0004,120]
[331047289,1720044223922,-1000.0,0.0004003,30]
[331047290,1720044223947,-5000.0,0.000402,51]
[331047291,1720044223973,-1000.0,0.00040284,30]
[331047292,1720044223997,-600.67171284,0.0004041,120]
[331047293,1720044224021,-2964.18208257,0.00040465,120]
[331047294,1720044224045,-1000.0,0.00040538,30]
[331047295,1720044224068,-2429.0,0.000407,81]
[331047296,1720044224092,-172.33333333,0.00040712,120]
[331047297,1720044224121,-554.0,0.00040746,60]
[331047298,1720044224148,-1000.0,0.00040791,30]
[331047299,1720044224191,-401.877955,0.000408,30]
[331047300,1720044224225,-5000.0,0.000408,52]
[331047301,1720044224258,-269.94714,0.000408,30]
[331047302,1720044224289,-169124.4275943,0.00040888,60]
[331047303,1720044224325,-1908.92901397,0.00040888,60]
[331047304,1720044224360,-101742.97756,0.000409,30]
[331047305,1720044224385,-2701.71847855,0.000409,120]
[331047306,1720044224421,-2701.71847837,0.000409,120]
[331047307,1720044224446,-2701.71847837,0.000409,120]
[331047308,1720044224480,-2701.71847837,0.000409,120]
[331047309,1720044224505,-2701.71847837,0.000409,120]
[331047310,1720044224530,-2701.71847837,0.000409,120]
[331047311,1720044224554,-2701.71847837,0.000409,120]
[331047312,1720044224579,-2701.71847837,0.000409,120]
[331047313,1720044224603,-2701.71847837,0.000409,120]
[331047314,1720044224629,-2701.71847837,0.000409,120]
[331047315,1720044224652,-2701.71847837,0.000409,120]
[331047316,1720044224677,-2701.71847837,0.000409,120]
[331047317,1720044224702,-2701.71847837,0.000409,120]
[331047318,1720044224729,-2701.71847837,0.000409,120]
[331047319,1720044224763,-2701.71847837,0.000409,120]
[331047320,1720044224788,-2701.71847837,0.000409,120]
[331047321,1720044224836,-2701.71847837,0.000409,120]
[331047322,1720044224872,-2701.71847837,0.000409,120]
[331047323,1720044224911,-2701.71847837,0.000409,120]
[331047324,1720044224957,-2701.71847837,0.000409,120]
[331047325,1720044224985,-50000.0,0.00041,31]
[331047326,1720044225011,-50000.0,0.00041,41]
[331047327,1720044225035,-689.93061324,0.00041,60]
[331047328,1720044225058,-1280.9490307,0.00041,120]
[331047329,1720044225082,-500.0,0.00041,120]
[331047330,1720044225105,-2476.2660442,0.00041,30]
[331047331,1720044225132,-152.0,0.00041041,31]
[331047332,1720044225157,-152.0,0.00041041,31]
[331047333,1720044225180,-152.0,0.00041041,31]
[331047334,1720044225208,-152.0,0.00041041,31]
[331047335,1720044225234,-1000.0,0.00041045,30]
[331047336,1720044225260,-510.0,0.00041095,120]
[331047337,1720044225286,-884.75,0.00041095,52]
[331047338,1720044225311,-151.0,0.00041151,120]
[331047339,1720044225335,-5000.0,0.000412,53]
[331047340,1720044225359,-1000.0,0.00041299,30]
[331047341,1720044225382,-510.0,0.00041369,120]
[331047342,1720044225406,-172.33333333,0.00041425,120]
[331047343,1720044225430,-1000.0,0.00041553,30]
[331047344,1720044225453,-235.0,0.000416,120]
[331047345,1720044225477,-510.0,0.00041643,120]
[331047346,1720044225500,-323.45259954,0.000418,120]
[331047347,1720044225523,-5000.0,0.000418,54]
[331047348,1720044225546,-1000.0,0.00041806,30]
[331047349,1720044225569,-510.0,0.00041917,120]
[331047350,1720044225592,-1047.89014069,0.00041992,120]
[331047351,1720044225617,-50000.0,0.00042,32]
[331047352,1720044225642,-50000.0,0.00042,42]
[331047353,1720044225665,-1000.0,0.00042,120]
[331047354,1720044225689,-675.5269564,0.00042,120]
[331047355,1720044225879,-706.34456189,0.00042,120]
[331047356,1720044225903,-10000.0,0.00042,120]
[331047357,1720044225928,-455.38173012,0.00042,120]
[331047358,1720044225956,-1000.0,0.0004206,30]
[331047359,1720044225981,-172.33333333,0.00042137,120]
[331047360,1720044226004,-241.2448059,0.00042191,120]
[331047361,1720044226027,-5000.0,0.000422,55]
[331047362,1720044226051,-151.0,0.00042301,120]
[331047363,1720044226074,-1000.0,0.00042314,30]
[331047364,1720044226097,-2517.15,0.00042465,30]
[331047365,1720044226124,-884.75,0.00042465,55]
[331047366,1720044226149,-2861.53,0.000425,120]
[331047367,1720044226173,-1000.0,0.00042567,30]
[331047368,1720044226197,-5000.0,0.000428,56]
[331047369,1720044226223,-1451800.36979728,0.000428,60]
[331047370,1720044226247,-1000.0,0.00042821,30]
[331047371,1720044226272,-172.33333333,0.00042849,120]
[331047372,1720044226296,-245.43457684,0.0004288,120]
[331047373,1720044226320,-3615.69285208,0.000429,120]
[331047374,1720044226345,-50000.0,0.00043,33]
[331047375,1720044226370,-50000.0,0.00043,43]
[331047376,1720044226394,-2989.16662015,0.00043,30]
[331047377,1720044226418,-1200.0,0.00043,120]
[331047378,1720044226442,-1000.0,0.00043,30]
[331047379,1720044226469,-471.29235902,0.00043,30]
[331047380,1720044226494,-509.85671981,0.00043,30]
[331047381,1720044226519,-4030.80750159,0.00043,60]
[331047382,1720044226543,-649.094,0.00043,120]
[331047383,1720044226567,-559.49863541,0.00043,30]
[331047384,1720044226591,-2715.42661333,0.00043,120]
[331047385,1720044226615,-775.89976396,0.00043,120]
[331047386,1720044226640,-1000.0,0.00043075,30]
[331047387,1720044226670,-5000.0,0.000432,57]
[331047388,1720044226694,-1000.0,0.00043328,30]
[331047389,1720044226719,-151.0,0.00043452,120]
[331047390,1720044226743,-75000.84992416,0.000435,120]
[331047391,1720044226767,-172.33333333,0.00043562,120]
[331047392,1720044226796,-1000.0,0.00043582,30]
[331047393,1720044226820,-468.77336648,0.000437,120]
[331047394,1720044226844,-729.57734797,0.00043748,120]
[331047395,1720044226867,-464.78093247,0.000438,30]
[331047396,1720044226890,-722.78894175,0.000438,120]
[331047397,1720044226913,-5000.0,0.000438,58]
[331047398,1720044226937,-1240.80005643,0.000438,111]
[331047399,1720044226964,-524.82,0.00043835,120]
[331047400,1720044226988,-524.82,0.00043835,120]
[331047401,1720044227012,-524.82,0.00043835,120]
[331047402,1720044227036,-524.82,0.00043835,120]
[331047403,1720044227060,-524.82,0.00043835,120]
[331047404,1720044227082,-524.82,0.00043835,120]
[331047405,1720044227108,-524.82,0.00043835,120]
[331047406,1720044227132,-524.82,0.00043835,120]
[331047407,1720044227157,-524.82,0.00043835,120]
[331047408,1720044227180,-524.82,0.00043835,120]
[331047409,1720044227206,-524.82,0.00043835,120]
[331047410,1720044227231,-524.82,0.00043835,120]
[331047411,1720044227255,-524.82,0.00043835,120]
[331047412,1720044227279,-524.82,0.00043835,120]
[331047413,1720044227303,-524.82,0.00043835,120]
[331047414,1720044227327,-524.82,0.00043835,120]
[331047415,1720044227350,-524.82,0.00043835,120]
[331047416,1720044227374,-524.82,0.00043835,120]
[331047417,1720044227398,-524.82,0.00043835,120]
[331047418,1720044227422,-524.82,0.00043835,120]
[331047419,1720044227446,-524.82,0.00043835,120]
[331047420,1720044227469,-524.82,0.00043835,120]
[331047421,1720044227493,-524.82,0.00043835,120]
[331047422,1720044227516,-524.95350373,0.00043835,120]
[331047423,1720044227540,-2517.15,0.00043835,32]
[331047424,1720044227563,-884.75,0.00043835,58]
[331047425,1720044227587,-1206.45249186,0.00043836,30]
[331047426,1720044227610,-10000.0,0.000439,120]
[331047427,1720044227633,-1031.51588012,0.000439,120]
[331047428,1720044227657,-3609.646424,0.000439,120]
[331047429,1720044227680,-3609.64642399,0.000439,120]
[331047430,1720044227704,-3609.64642399,0.000439,120]
[331047431,1720044227728,-3609.64642399,0.000439,120]
[331047432,1720044227751,-3609.64642399,0.000439,120]
[331047433,1720044227775,-3609.64642399,0.000439,120]
[331047434,1720044227797,-3609.64642399,0.000439,120]
[331047435,1720044227821,-3609.64642399,0.000439,120]
[331047436,1720044227844,-3609.64642399,0.000439,120]
[331047437,1720044227867,-3609.64642399,0.000439,120]
[331047438,1720044227890,-2671.9,0.00043951,99]
[331047439,1720044227915,-50000.0,0.00044,34]
[331047440,1720044227942,-50000.0,0.00044,44]
[331047441,1720044227968,-1000.0,0.00044,120]
[331047442,1720044227992,-1100.0,0.00044,120]
[331047443,1720044228015,-421.81066476,0.00044,120]
[331047444,1720044228039,-1173.71,0.00044,30]
[331047445,1720044228062,-1415.2,0.00044,120]
[331047446,1720044228085,-275.09981976,0.00044,30]
[331047447,1720044228112,-580.0,0.00044,120]
[331047448,1720044228136,-21277.0,0.000442,30]
[331047449,1720044228159,-5000.0,0.000442,59]
[331047450,1720044228184,-1310.79889666,0.000442,120]
[331047451,1720044228207,-1310.79889665,0.000442,120]
[331047452,1720044228233,-1310.79889665,0.000442,120]
[331047453,1720044228449,-1310.79889665,0.000442,120]
[331047454,1720044228476,-1310.79889665,0.000442,120]
[331047455,1720044228501,-172.33333333,0.00044274,120]
[331047456,1720044228526,-2211.0,0.000443,30]
[331047457,1720044228550,-315.89354247,0.000443,120]
[331047458,1720044228578,-261.42,0.0004438,120]
[331047459,1720044228610,-174.19940653,0.0004438,120]
[331047460,1720044228653,-174.19940653,0.0004438,120]
[331047461,1720044228685,-174.19940653,0.0004438,120]
[331047462,1720044228709,-174.19940653,0.0004438,120]
[331047463,1720044228747,-174.19940653,0.0004438,120]
[331047464,1720044228771,-174.69,0.0004438,120]
[331047465,1720044228797,-219.7878591,0.0004438,120]
[331047466,1720044228822,-219.7878591,0.0004438,120]
[331047467,1720044228846,-219.7878591,0.0004438,120]
[331047468,1720044228870,-219.7878591,0.0004438,120]
[331047469,1720044228894,-219.7878591,0.0004438,120]
[331047470,1720044228919,-219.7878591,0.0004438,120]
[331047471,1720044228944,-219.7878591,0.0004438,120]
[331047472,1720044228969,-219.7878591,0.0004438,120]
[331047473,1720044228994,-219.7878591,0.0004438,120]
[331047474,1720044229019,-219.7878591,0.0004438,120]
[331047475,1720044229069,-219.7878591,0.0004438,120]
[331047476,1720044229099,-219.7878591,0.0004438,120]
[331047477,1720044229128,-219.7878591,0.0004438,120]
[331047478,1720044229151,-219.7878591,0.0004438,120]
[331047479,1720044229175,-219.7878591,0.0004438,120]
[331047480,1720044229204,-219.7878591,0.0004438,120]
[331047481,1720044229232,-219.7878591,0.0004438,120]
[331047482,1720044229258,-219.7878591,0.0004438,120]
[331047483,1720044229285,-219.7878591,0.0004438,120]
[331047484,1720044229310,-220.28,0.0004438,120]
[331047485,1720044229335,-879.2264364,0.0004438,120]
[331047486,1720044229360,-879.2264364,0.0004438,120]
[331047487,1720044229385,-879.2264364,0.0004438,120]
[331047488,1720044229410,-879.2264364,0.0004438,120]
[331047489,1720044229434,-879.2264364,0.0004438,120]
[331047490,1720044229460,-879.2264364,0.0004438,120]
[331047491,1720044229486,-879.2264364,0.0004438,120]
[331047492,1720044229510,-879.2264364,0.0004438,120]
[331047493,1720044229534,-879.2264364,0.0004438,120]
[331047494,1720044229559,-879.2264364,0.0004438,120]
[331047495,1720044229583,-879.2264364,0.0004438,120]
[331047496,1720044229607,-879.2264364,0.0004438,120]
[331047497,1720044229631,-879.2264364,0.0004438,120]
[331047498,1720044229654,-879.2264364,0.0004438,120]
[331047499,1720044229677,-879.2264364,0.0004438,120]
[331047500,1720044229700,-879.2264364,0.0004438,120]
[331047501,1720044229725,-879.2264364,0.0004438,120]
[331047502,1720044229749,-879.2264364,0.0004438,120]
[331047503,1720044229774,-879.2264364,0.0004438,120]
[331047504,1720044229798,-879.72,0.0004438,120]
[331047505,1720044229822,-182.87575715,0.0004438,120]
[331047506,1720044229846,-182.87575715,0.0004438,120]
[331047507,1720044229868,-182.87575715,0.0004438,120]
[331047508,1720044229892,-182.87575715,0.0004438,120]
[331047509,1720044229915,-182.87575715,0.0004438,120]
[331047510,1720044229940,-182.87575715,0.0004438,120]
[331047511,1720044229963,-182.87575715,0.0004438,120]
[331047512,1720044229987,-182.87575715,0.0004438,120]
[331047513,1720044230012,-182.87575715,0.0004438,120]
[331047514,1720044230035,-182.87575715,0.0004438,120]
[331047515,1720044230058,-182.87575715,0.0004438,120]
[331047516,1720044230081,-182.87575715,0.0004438,120]
[331047517,1720044230108,-182.87575715,0.0004438,120]
[331047518,1720044230132,-182.87575715,0.0004438,120]
[331047519,1720044230158,-182.87575715,0.0004438,120]
[331047520,1720044230181,-182.87575715,0.0004438,120]
[331047521,1720044230207,-182.87575715,0.0004438,120]
[331047522,1720044230232,-182.87575715,0.0004438,120]
[331047523,1720044230256,-182.87575715,0.0004438,120]
[331047524,1720044230280,-183.37,0.0004438,120]
[331047525,1720044230304,-731.57802859,0.0004438,120]
[331047526,1720044230329,-731.57802859,0.0004438,120]
[331047527,1720044230353,-731.57802859,0.0004438,120]
[331047528,1720044230377,-731.57802859,0.0004438,120]
[331047529,1720044230402,-731.57802859,0.0004438,120]
[331047530,1720044230426,-731.57802859,0.0004438,120]
[331047531,1720044230451,-731.57802859,0.0004438,120]
[331047532,1720044230475,-731.57802859,0.0004438,120]
[331047533,1720044230500,-731.57802859,0.0004438,120]
[331047534,1720044230525,-731.57802859,0.0004438,120]
[331047535,1720044230550,-731.57802859,0.0004438,120]
[331047536,1720044230574,-731.57802859,0.0004438,120]
[331047537,1720044230599,-731.57802859,0.0004438,120]
[331047538,1720044230625,-731.57802859,0.0004438,120]
[331047539,1720044230653,-731.57802859,0.0004438,120]
[331047540,1720044230694,-731.57802859,0.0004438,120]
[331047541,1720044230728,-731.57802859,0.0004438,120]
[331047542,1720044230761,-731.57802859,0.0004438,120]
[331047543,1720044230789,-731.57802859,0.0004438,120]
[331047544,1720044230813,-732.07,0.0004438,120]
[331047545,1720044230851,-246.77836333,0.0004438,120]
[331047546,1720044230906,-246.77836333,0.0004438,120]
[331047547,1720044230953,-246.77836333,0.0004438,120]
[331047548,1720044231000,-246.77836333,0.0004438,120]
[331047549,1720044231194,-246.77836333,0.0004438,120]
[331047550,1720044231220,-246.77836333,0.0004438,120]
[331047551,1720044231244,-246.77836333,0.0004438,120]
[331047552,1720044231269,-246.77836333,0.0004438,120]
[331047553,1720044231294,-246.77836333,0.0004438,120]
[331047554,1720044231318,-246.77836333,0.0004438,120]
[331047555,1720044231342,-246.77836333,0.0004438,120]
[331047556,1720044231366,-246.77836333,0.0004438,120]
[331047557,1720044231390,-246.77836333,0.0004438,120]
[331047558,1720044231414,-246.77836333,0.0004438,120]
[331047559,1720044231438,-246.77836333,0.0004438,120]
[331047560,1720044231461,-246.77836333,0.0004438,120]
[331047561,1720044231488,-246.77836333,0.0004438,120]
[331047562,1720044231515,-246.77836333,0.0004438,120]
[331047563,1720044231539,-246.77836333,0.0004438,120]
[331047564,1720044231563,-247.27,0.0004438,120]
[331047565,1720044231587,-987.18845333,0.0004438,120]
[331047566,1720044231611,-987.18845333,0.0004438,120]
[331047567,1720044231636,-987.18845333,0.0004438,120]
[331047568,1720044231660,-987.18845333,0.0004438,120]
[331047569,1720044231684,-987.18845333,0.0004438,120]
[331047570,1720044231708,-987.18845333,0.0004438,120]
[331047571,1720044231734,-987.18845333,0.0004438,120]
[331047572,1720044231758,-987.18845333,0.0004438,120]
[331047573,1720044231783,-987.18845333,0.0004438,120]
[331047574,1720044231807,-987.18845333,0.0004438,120]
[331047575,1720044231831,-987.18845333,0.0004438,120]
[331047576,1720044231854,-987.18845333,0.0004438,120]
[331047577,1720044231879,-987.18845333,0.0004438,120]
[331047578,1720044231904,-987.18845333,0.0004438,120]
[331047579,1720044231933,-987.18845333,0.0004438,120]
[331047580,1720044231959,-987.18845333,0.0004438,120]
[331047581,1720044231988,-987.18845333,0.0004438,120]
[331047582,1720044232015,-987.18845333,0.0004438,120]
[331047583,1720044232040,-987.18845333,0.0004438,120]
[331047584,1720044232065,-987.68,0.0004438,120]
[331047585,1720044232091,-1637.9,0.00044384,120]
[331047586,1720044232117,-150.0,0.0004439,30]
[331047587,1720044232143,-400000.0,0.0004444,120]
[331047588,1720044232168,-151.0,0.00044603,120]
[331047589,1720044232192,-652.94981765,0.0004474,120]
[331047590,1720044232217,-1299.3,0.000448,60]
[331047591,1720044232241,-5000.0,0.000448,60]
[331047592,1720044232267,-20138.9615197,0.000448,30]
[331047593,1720044232292,-2600.0,0.00044874,60]
[331047594,1720044232317,-4068.87189678,0.000449,60]
[331047595,1720044232342,-128212.82907825,0.000449,30]
[331047596,1720044232366,-2610.0,0.000449,30]
[331047597,1720044232392,-172.33333333,0.00044986,120]
[331047598,1720044232421,-50000.0,0.00045,35]
[331047599,1720044232453,-50000.0,0.00045,45]
[331047600,1720044232478,-1448.62251266,0.00045,90]
[331047601,1720044232504,-1031.4852009,0.00045,45]
[331047602,1720044232531,-2040.14097611,0.00045,30]
[331047603,1720044232556,-2000.0,0.00045,30]
[331047604,1720044232581,-150.0,0.00045,85]
[331047605,1720044232606,-150.0065485,0.00045,30]
[331047606,1720044232632,-333.81486302,0.00045,120]
[331047607,1720044232658,-337.45000961,0.00045,30]
[331047608,1720044232684,-300.0,0.00045,30]
[331047609,1720044232708,-500.0,0.00045,30]
[331047610,1720044232734,-500.0,0.00045,30]
[331047611,1720044232759,-500.0,0.00045,30]
[331047612,1720044232785,-500.0,0.00045,30]
[331047613,1720044232809,-500.0,0.00045,30]
[331047614,1720044232834,-500.0,0.00045,30]
[331047615,1720044232859,-500.0,0.00045,30]
[331047616,1720044232884,-500.0,0.00045,30]
[331047617,1720044232908,-202.0,0.00045,30]
[331047618,1720044232932,-150.0,0.00045,120]
[331047619,1720044232956,-485.0,0.00045,120]
[331047620,1720044232982,-186.41593842,0.00045,120]
[331047621,1720044233005,-2500.0,0.00045,120]
[331047622,1720044233028,-323.47095731,0.00045,120]
[331047623,1720044233053,-62312.18409373,0.00045,90]
[331047624,1720044233076,-1195.08551217,0.00045,120]
[331047625,1720044233100,-528.21944895,0.00045,120]
[331047626,1720044233128,-629.0,0.00045,60]
[331047627,1720044233152,-980000.0,0.00045,80]
[331047628,1720044233176,-311.48576853,0.00045,35]
[331047629,1720044233202,-162.85962741,0.00045,120]
[331047630,1720044233226,-1303.51161715,0.00045,120]
[331047631,1720044233250,-1548.48710451,0.00045,120]
[331047632,1720044233273,-654.0,0.00045,120]
[331047633,1720044233297,-10242.0,0.00045,30]
[331047634,1720044233321,-155.0,0.00045,120]
[331047635,1720044233345,-305.12,0.00045,120]
[331047636,1720044233369,-1028.20095,0.00045088,30]
[331047637,1720044233393,-2517.15,0.00045205,34]
[331047638,1720044233419,-884.75,0.00045205,61]
[331047639,1720044233443,-1028.20095,0.00045288,30]
[331047640,1720044233468,-1028.20095,0.00045488,30]
[331047641,1720044233647,-6453.87468907,0.000455,90]
[331047642,1720044233671,-3469.91704248,0.000456,120]
[331047643,1720044233695,-1028.20095,0.00045688,30]
[331047644,1720044233721,-172.33333333,0.00045699,120]
[331047645,1720044233745,-151.0,0.00045753,120]
[331047646,1720044233769,-156.8192,0.00045888,30]
[331047647,1720044233793,-10235.16556325,0.000459,60]
[331047648,1720044233820,-50000.0,0.00046,36]
[331047649,1720044233846,-50000.0,0.00046,46]
[331047650,1720044233870,-1202.91222314,0.00046,30]
[331047651,1720044233894,-1000.0,0.00046,30]
[331047652,1720044233918,-1000.0,0.00046,120]
[331047653,1720044233943,-1000.0,0.00046,120]
[331047654,1720044233969,-8280.67010991,0.00046,90]
[331047655,1720044233994,-151.2363228,0.00046,120]
[331047656,1720044234020,-251.0,0.00046,30]
[331047657,1720044234047,-798.45834346,0.00046,120]
[331047658,1720044234073,-124038.22772,0.00046,90]
[331047659,1720044241605,-150.0,0.0004438,30]
[331047660,1720044241631,-500.0,0.00045753,120]
[331047661,1720044241656,-500.0,0.00045753,120]
[331047662,1720044241681,-875961.77228,0.00046,90]
[331047663,1720044241705,-168.3,0.00046,96]
[331047664,1720044241729,-212.66971091,0.00046,120]
[331047665,1720044241754,-3394.28326667,0.00046,120]
[331047666,1720044241778,-5037.33728962,0.00046,30]
[331047667,1720044241802,-13091.33208684,0.00046,30]
[331047668,1720044241826,-1028.20095,0.00046088,30]
[331047669,1720044241851,-1028.20095,0.00046288,30]
[331047670,1720044241876,-172.33333333,0.00046411,120]
[331047671,1720044241902,-710.59387562,0.00046464,120]
[331047672,1720044241928,-1028.20095,0.00046488,30]
[331047673,1720044241974,-1074.40476424,0.000465,120]
[331047674,1720044242005,-2517.15,0.00046575,120]
[331047675,1720044242032,-884.75,0.00046575,64]
[331047676,1720044242180,208.52584804,0.00046575,30]
[331047677,1720044242214,216.76036533,0.00046575,30]
[331047678,1720044247558,2100.0,0.00046575,30]
[331047679,1720044248945,300.0,0.00046575,30]
[331047680,1720044253119,150.0,0.00046575,30]
[331047681,1720044256862,1176.36012841,0.0004041,90]
[331047682,1720044260232,300.0,0.0004041,30]
[331047699,1720044633784,-256.269,0.00013348,2]
[331047711,1720044633946,-500.0,0.00013348,2]
[331047712,1720044633957,-1185.7351,0.00013348,2]
[331047713,1720044633967,-690.10215601,0.00013472,2]
[331047714,1720044633976,-2372.13929208,0.00014,2]
[331047715,1720044633987,-8209.00007,0.00014,2]
[331047716,1720044633997,-327.39805379,0.00014,2]
[331047717,1720044634008,-5268.5148648,0.00014,2]
[331047726,1720044634173,-804.43551989,0.00014,2]
[331047758,1720044638586,-9846.52340112,0.00014,2]
[331047759,1720044638772,-26161.4114426,0.00014,2]
[331047760,1720044638942,-520.5575052,0.00014,2]
[331047764,1720044639958,-2571.61730148,0.00014,2]
[331047765,1720044639969,-990.09449998,0.00014,2]
[331047766,1720044639982,-354.94000005,0.00014,2]
[331047776,1720044642872,-325.21435768,0.00014,2]
[331047777,1720044642883,-415.89467857,0.00014,2]
[331047785,1720044643963,-218.9214001,0.00014,2]
[331047786,1720044643972,-310.0,0.00014099,2]
[331047787,1720044643982,-10482.95348908,0.00015,2]
[331047788,1720044643994,-469.52783432,0.00015,2]
[331047792,1720044645974,-281.16809237,0.00014393,2]
[331047793,1720044645984,-141.74317111,0.00015,2]
[331047794,1720044645995,-8931.0,0.00015,2]
[331047795,1720044646297,-887.11588198,0.00015,2]
[331047796,1720044646310,-7157.13451261,0.00015,2]
[331048090,1720045471530,6486.07398884,0.00011199,2]
[331048091,1720045471554,20000.0,0.00011199,2]
[331048092,1720045471804,7161.1441275,0.00011199,2]
[331048093,1720045514051,411.68664437,0.00011199,2]
[331048094,1720045530950,7553.1211251,0.00011199,2]
[331048095,1720045542980,181.09928912,0.00011199,2]
[331048096,1720045547046,4692.94881391,0.00011199,2]
[331048097,1720045547069,1611.55193819,0.00011199,2]
[331048099,1720045552852,552.74071547,0.00011199,2]
[331048100,1720045590954,411.34985411,0.00011199,2]
[331048101,1720045616885,971.34712689,0.00011199,2]
[331048110,1720045732978,5815.83049333,0.00011199,2]
[331048124,1720045831993,-155.0,0.00013128,2]
[331048125,1720045832003,-130.30300787,0.00013802,2]
[331048126,1720045832146,-104.9090987,0.00013802,2]
[331048127,1720045832156,-308.19482801,0.00013989,2]
[331048128,1720045832166,-117.90700268,0.00013989,2]
[331048148,1720045838061,-314.96008511,0.00013989,2]
[331048149,1720045838072,-438.44980414,0.00013989,2]
[331048150,1720045838081,-263.61947284,0.00013989,2]
[331048151,1720045838091,-155.0,0.00013999,2]
[331048152,1720045838101,-196.39295394,0.00013999,2]
[331048153,1720045838111,-242.09159978,0.00014099,2]
[331048154,1720045838120,-310.0,0.00014099,2]
[331048155,1720045838130,-3616.333839,0.00014321,2]
[331048156,1720045838140,-366.01868755,0.00014393,2]
[331048157,1720045838150,-347.47664097,0.00014393,2]
[331048158,1720045838160,-2308.95425251,0.00014499,2]
[331048178,1720045840376,-672.56693239,0.00014499,2]
[331048179,1720045840389,-348.88793135,0.00014499,2]
[331048180,1720045840399,-3349.60311466,0.00015,2]
[331048181,1720045840749,-635.48483251,0.00015,2]
[331048206,1720045843060,-10865.48775891,0.00015,2]
[331048277,1720045846316,-388.30175396,0.00015,2]
[331048350,1720045846820,-3664.66474023,0.00015,2]
[331048352,1720045846830,-1013.16514783,0.00015535,2]
[331048355,1720045846839,-450.14,0.00016688,2]
[331048358,1720045846849,-647.26467047,0.00016808,2]
[331048362,1720045846859,-2107.0,0.000175,3]
[331048365,1720045846868,-155.0,0.00017566,2]
[331048368,1720045846877,-563.0,0.000176,3]
[331048371,1720045846886,-250.0,0.00018049,2]
[331048373,1720045846895,-845.08,0.00018056,2]
[331048376,1720045846905,-272.78,0.00018077,2]
[331048380,1720045846914,-446.94,0.00018082,2]
[331048383,1720045846929,-763.2,0.00018097,2]
[331048386,1720045846939,-608.67,0.00018146,3]
[331048389,1720045846948,-250.0,0.00018164,2]
[331048392,1720045846958,-150.0,0.00018175,2]
[331048395,1720045846967,-253.08495738,0.00018182,2]
[331048398,1720045846978,-300.41202061,0.00018182,2]
[331048401,1720045846988,-346.11823219,0.00018432,2]
[331048404,1720045846997,-217.84498894,0.00018432,2]
[331048407,1720045847009,-163.64202156,0.00018432,2]
[331048409,1720045847018,-227.12084219,0.00018432,2]
[331048412,1720045847030,-199.39,0.00018585,2]
[331048415,1720045847039,-200.0,0.000186,2]
[331048418,1720045847048,-173.61,0.00018606,2]
[331048421,1720045847057,-303.74358298,0.00018649,2]
[331048424,1720045847067,-157.08319768,0.00018649,2]
[331048427,1720045847076,-15862.97,0.0001876,2]
[331048430,1720045847085,-168.5,0.00018841,2]
[331048433,1720045847094,-528.42,0.00018877,2]
[331048436,1720045847103,-155.67,0.00018877,2]
[331048439,1720045847113,-354.62,0.00018877,2]
[331048442,1720045847122,-227.11,0.00018877,2]
[331048444,1720045847131,-423.92,0.00018877,2]
[331048446,1720045847141,-528.42,0.00018877,2]
[331048448,1720045847150,-150.0,0.00018877,2]
[331048450,1720045847159,-150.0,0.00018877,2]
[331048452,1720045847168,-522.92,0.00018877,2]
[331048454,1720045847178,-202.16431175,0.00018899,2]
[331048456,1720045847187,-168.5,0.00018936,2]
[331048458,1720045847197,-450.14,0.00018952,2]